[Event "November 21 Early 2023"]
[Site "https://www.chess.com"]
[Date "2023.11.21"]
[Round "1"]
[White "Warmerdam, Max"]
[Black "Martins, Bruno Andre Leite"]
[Result "1-0"]
[Board "63"]
[TimeControl "180+1"]
[WhiteFideId "1048104"]
[BlackFideId "1942255"]
[WhiteElo "2530"]
[BlackElo "2307"]
[WhiteTeam "NED"]
[BlackTeam "POR"]
[WhiteClock "0:02:23"]
[BlackClock "0:00:13"]

1. b3 {[%clk 0:03:00]}  e5 {[%clk 0:02:57]} 2. Bb2 {[%clk 0:03:01]}  Nc6 {[%clk 0:02:57]} 3. c4 {[%clk 0:03:02]}  Nf6 {[%clk 0:02:55]} 4. Nf3 {[%clk 0:02:59]}  d6 {[%clk 0:02:54]} 5. e3 {[%clk 0:02:56]}  Be7 {[%clk 0:02:53]} 6. d4 {[%clk 0:02:51]}  exd4 {[%clk 0:02:51]} 7. Nxd4 {[%clk 0:02:51]}  O-O {[%clk 0:02:51]} 8. Be2 {[%clk 0:02:52]}  Re8 {[%clk 0:02:51]} 9. O-O {[%clk 0:02:52]}  Bd7 {[%clk 0:02:46]} 10. Nc3 {[%clk 0:02:52]}  a6 {[%clk 0:02:37]} 11. Rc1 {[%clk 0:02:49]}  Nxd4 {[%clk 0:02:32]} 12. Qxd4 {[%clk 0:02:48]}  Bc6 {[%clk 0:02:30]} 13. Nd5 {[%clk 0:02:45]}  Bxd5 {[%clk 0:01:28]} 14. cxd5 {[%clk 0:02:44]}  Qd7 {[%clk 0:01:29]} 15. Rc2 {[%clk 0:02:41]}  c6 {[%clk 0:01:26]} 16. dxc6 {[%clk 0:02:39]}  bxc6 {[%clk 0:01:26]} 17. Bf3 {[%clk 0:02:39]}  d5 {[%clk 0:01:24]} 18. Rfc1 {[%clk 0:02:37]}  Rec8 {[%clk 0:01:12]} 19. g3 {[%clk 0:02:36]}  a5 {[%clk 0:01:06]} 20. Qa4 {[%clk 0:02:36]}  Ra6 {[%clk 0:00:55]} 21. Be2 {[%clk 0:02:31]}  Rb6 {[%clk 0:00:31]} 22. Bxf6 {[%clk 0:02:21]}  Bxf6 {[%clk 0:00:31]} 23. Bg4 {[%clk 0:02:21]}  Qb7 {[%clk 0:00:19]} 24. Bxc8 {[%clk 0:02:21]}  Qxc8 {[%clk 0:00:20]} 25. Rxc6 {[%clk 0:02:22]}  Rxc6 {[%clk 0:00:13]} 26. Qxc6 {[%clk 0:02:23]} 1-0

[Event "November 21 Early 2023"]
[Site "https://www.chess.com"]
[Date "2023.11.21"]
[Round "1"]
[White "Rangel, Daniel"]
[Black "Kravtsiv, Martyn"]
[Result "0-1"]
[Board "64"]
[TimeControl "180+1"]
[WhiteFideId "2124475"]
[BlackFideId "14113147"]
[WhiteElo "2267"]
[BlackElo "2689"]
[WhiteTeam "BRA"]
[BlackTeam "UKR"]
[WhiteClock "0:00:00"]
[BlackClock "0:00:05"]

1. c4 {[%clk 0:03:00]}  e6 {[%clk 0:02:57]} 2. g3 {[%clk 0:03:01]}  d5 {[%clk 0:02:57]} 3. Bg2 {[%clk 0:03:02]}  Nf6 {[%clk 0:02:55]} 4. Nf3 {[%clk 0:03:03]}  d4 {[%clk 0:02:56]} 5. O-O {[%clk 0:03:03]}  c5 {[%clk 0:02:56]} 6. e3 {[%clk 0:03:00]}  Nc6 {[%clk 0:02:56]} 7. exd4 {[%clk 0:03:00]}  cxd4 {[%clk 0:02:57]} 8. d3 {[%clk 0:03:01]}  Be7 {[%clk 0:02:50]} 9. Bg5 {[%clk 0:03:00]}  O-O {[%clk 0:02:50]} 10. Nbd2 {[%clk 0:03:00]}  h6 {[%clk 0:02:45]} 11. Bxf6 {[%clk 0:03:00]}  Bxf6 {[%clk 0:02:46]} 12. a3 {[%clk 0:02:56]}  a5 {[%clk 0:02:45]} 13. Qe2 {[%clk 0:02:55]}  Qb6 {[%clk 0:02:41]} 14. Rab1 {[%clk 0:02:54]}  Be7 {[%clk 0:02:37]} 15. Ne5 {[%clk 0:02:49]}  Nxe5 {[%clk 0:02:32]} 16. Qxe5 {[%clk 0:02:50]}  Bd7 {[%clk 0:02:32]} 17. Nf3 {[%clk 0:02:42]}  Bf6 {[%clk 0:02:31]} 18. Qe2 {[%clk 0:02:35]}  a4 {[%clk 0:02:31]} 19. Nd2 {[%clk 0:02:33]}  Ra5 {[%clk 0:02:28]} 20. b4 {[%clk 0:02:31]}  axb3 {[%clk 0:02:09]} 21. Rxb3 {[%clk 0:02:31]}  Qa6 {[%clk 0:02:09]} 22. Rxb7 {[%clk 0:02:25]}  Bc8 {[%clk 0:02:04]} 23. Rb3 {[%clk 0:02:21]}  Rxa3 {[%clk 0:02:03]} 24. Rxa3 {[%clk 0:02:19]}  Qxa3 {[%clk 0:02:04]} 25. Ne4 {[%clk 0:02:20]}  Be7 {[%clk 0:02:03]} 26. Qc2 {[%clk 0:02:02]}  Bb4 {[%clk 0:01:59]} 27. Rb1 {[%clk 0:02:01]}  f5 {[%clk 0:01:54]} 28. Nd2 {[%clk 0:01:52]}  Rd8 {[%clk 0:01:27]} 29. Qb3 {[%clk 0:01:46]}  Qxb3 {[%clk 0:01:23]} 30. Nxb3 {[%clk 0:01:47]}  Bf8 {[%clk 0:01:11]} 31. Ra1 {[%clk 0:01:44]}  Bb4 {[%clk 0:01:04]} 32. Ra8 {[%clk 0:01:39]}  Be7 {[%clk 0:00:52]} 33. Nxd4 {[%clk 0:01:26]}  Rxd4 {[%clk 0:00:51]} 34. Rxc8+ {[%clk 0:01:26]}  Kf7 {[%clk 0:00:52]} 35. Bf1 {[%clk 0:01:26]}  e5 {[%clk 0:00:47]} 36. f3 {[%clk 0:01:23]}  Rd7 {[%clk 0:00:44]} 37. g4 {[%clk 0:01:15]}  f4 {[%clk 0:00:42]} 38. Kf2 {[%clk 0:01:15]}  Ra7 {[%clk 0:00:41]} 39. Be2 {[%clk 0:01:00]}  Ke6 {[%clk 0:00:40]} 40. Rc6+ {[%clk 0:00:55]}  Kf7 {[%clk 0:00:35]} 41. Ke1 {[%clk 0:00:51]}  Ra2 {[%clk 0:00:33]} 42. Rb6 {[%clk 0:00:43]}  Bh4+ {[%clk 0:00:31]} 43. Kf1 {[%clk 0:00:41]}  Ra1+ {[%clk 0:00:28]} 44. Kg2 {[%clk 0:00:40]}  Rc1 {[%clk 0:00:25]} 45. Rb2 {[%clk 0:00:35]}  Ke6 {[%clk 0:00:22]} 46. Bf1 {[%clk 0:00:33]}  Be7 {[%clk 0:00:20]} 47. Rb6+ {[%clk 0:00:27]}  Kd7 {[%clk 0:00:20]} 48. Rb7+ {[%clk 0:00:27]}  Kd6 {[%clk 0:00:20]} 49. Rb6+ {[%clk 0:00:20]}  Kc5 {[%clk 0:00:20]} 50. Rb5+ {[%clk 0:00:20]}  Kd6 {[%clk 0:00:17]} 51. Rd5+ {[%clk 0:00:20]}  Ke6 {[%clk 0:00:17]} 52. d4 {[%clk 0:00:21]}  Rc2+ {[%clk 0:00:16]} 53. Kh3 {[%clk 0:00:18]}  Bf6 {[%clk 0:00:12]} 54. dxe5 {[%clk 0:00:18]}  Bxe5 {[%clk 0:00:13]} 55. Bd3 {[%clk 0:00:15]}  Rc3 {[%clk 0:00:10]} 56. Bf5+ {[%clk 0:00:15]}  Kf6 {[%clk 0:00:10]} 57. Be4 {[%clk 0:00:12]}  Rc1 {[%clk 0:00:08]} 58. c5 {[%clk 0:00:10]}  Rc2 {[%clk 0:00:08]} 59. c6 {[%clk 0:00:10]}  Rc3 {[%clk 0:00:07]} 60. Rb5 {[%clk 0:00:10]}  Rc4 {[%clk 0:00:06]} 61. Rb7 {[%clk 0:00:09]}  Rc3 {[%clk 0:00:07]} 62. Rd7 {[%clk 0:00:06]}  Rc5 {[%clk 0:00:05]} 63. Rd5 {[%clk 0:00:07]}  Rc3 {[%clk 0:00:05]} 64. Rd7 {[%clk 0:00:06]}  g6 {[%clk 0:00:05]} 65. Bd5 {[%clk 0:00:07]}  Kg5 {[%clk 0:00:05]} 66. Be4 {[%clk 0:00:06]}  Rc4 {[%clk 0:00:05]} 67. Re7 {[%clk 0:00:06]}  Bd4 {[%clk 0:00:05]} 68. Re6 {[%clk 0:00:06]}  Bf6 {[%clk 0:00:03]} 69. Rd6 {[%clk 0:00:07]}  h5 {[%clk 0:00:03]} 70. Rd5+ {[%clk 0:00:07]}  Kh6 {[%clk 0:00:03]} 71. gxh5 {[%clk 0:00:08]}  gxh5 {[%clk 0:00:03]} 72. Rd6 {[%clk 0:00:08]}  Kg5 {[%clk 0:00:04]} 73. Rd5+ {[%clk 0:00:08]}  Kh6 {[%clk 0:00:04]} 74. Rd7 {[%clk 0:00:09]}  Rc1 {[%clk 0:00:02]} 75. Rh7+ {[%clk 0:00:09]}  Kg5 {[%clk 0:00:03]} 76. Rf7 {[%clk 0:00:09]}  Bd4 {[%clk 0:00:02]} 77. Rf5+ {[%clk 0:00:09]}  Kh6 {[%clk 0:00:03]} 78. Rf7 {[%clk 0:00:09]}  Be5 {[%clk 0:00:02]} 79. Re7 {[%clk 0:00:08]}  Bb8 {[%clk 0:00:02]} 80. Re8 {[%clk 0:00:07]}  Bc7 {[%clk 0:00:02]} 81. Re7 {[%clk 0:00:07]}  Bb6 {[%clk 0:00:02]} 82. Kh4 {[%clk 0:00:05]}  Bd8 {[%clk 0:00:02]} 83. Kh3 {[%clk 0:00:03]}  Bxe7 {[%clk 0:00:02]} 84. c7 {[%clk 0:00:04]}  Rxc7 {[%clk 0:00:02]} 85. Bf5 {[%clk 0:00:05]}  Bf6 {[%clk 0:00:02]} 86. Be4 {[%clk 0:00:06]}  Re7 {[%clk 0:00:03]} 87. Bf5 {[%clk 0:00:04]}  Re5 {[%clk 0:00:03]} 88. Be4 {[%clk 0:00:03]}  Kg5 {[%clk 0:00:04]} 89. Bc6 {[%clk 0:00:03]}  Re3 {[%clk 0:00:04]} 90. Bd7 {[%clk 0:00:04]}  Rxf3+ {[%clk 0:00:04]} 91. Kg2 {[%clk 0:00:00]}  Re3 {[%clk 0:00:05]} 0-1

[Event "November 21 Early 2023"]
[Site "https://www.chess.com"]
[Date "2023.11.21"]
[Round "1"]
[White "Dragun, Kamil"]
[Black "Nikologorsky, Matfei"]
[Result "0-1"]
[Board "65"]
[TimeControl "180+1"]
[WhiteFideId "1134167"]
[BlackFideId "24102474"]
[WhiteElo "2551"]
[BlackElo "2153"]
[WhiteTeam "POL"]
[BlackTeam "FID"]
[WhiteClock "0:00:04"]
[BlackClock "0:00:21"]

1. d4 {[%clk 0:02:58]}  Nf6 {[%clk 0:02:59]} 2. c4 {[%clk 0:02:57]}  e6 {[%clk 0:02:59]} 3. Nf3 {[%clk 0:02:57]}  a6 {[%clk 0:02:53]} 4. g3 {[%clk 0:02:42]}  c5 {[%clk 0:02:53]} 5. Bg2 {[%clk 0:02:39]}  cxd4 {[%clk 0:02:50]} 6. Nxd4 {[%clk 0:02:40]}  Qc7 {[%clk 0:02:48]} 7. O-O {[%clk 0:02:40]}  Qxc4 {[%clk 0:02:42]} 8. Nc3 {[%clk 0:02:41]}  Nc6 {[%clk 0:02:41]} 9. Nb3 {[%clk 0:02:39]}  d5 {[%clk 0:02:31]} 10. Bf4 {[%clk 0:02:38]}  Be7 {[%clk 0:02:24]} 11. Rc1 {[%clk 0:02:39]}  Qb4 {[%clk 0:02:19]} 12. a3 {[%clk 0:02:19]}  Qb6 {[%clk 0:02:18]} 13. e4 {[%clk 0:02:15]}  dxe4 {[%clk 0:02:13]} 14. Nxe4 {[%clk 0:02:16]}  O-O {[%clk 0:02:04]} 15. Be3 {[%clk 0:02:10]}  Qb5 {[%clk 0:01:50]} 16. Bc5 {[%clk 0:01:30]}  Rd8 {[%clk 0:01:43]} 17. Qc2 {[%clk 0:01:29]}  Nxe4 {[%clk 0:01:25]} 18. Bxe4 {[%clk 0:01:28]}  Bf6 {[%clk 0:01:09]} 19. Rfd1 {[%clk 0:01:23]}  h6 {[%clk 0:00:55]} 20. Rxd8+ {[%clk 0:00:53]}  Bxd8 {[%clk 0:00:48]} 21. Rd1 {[%clk 0:00:51]}  Bf6 {[%clk 0:00:48]} 22. a4 {[%clk 0:00:29]}  Qxa4 {[%clk 0:00:46]} 23. Ra1 {[%clk 0:00:29]}  Qb5 {[%clk 0:00:39]} 24. Bd3 {[%clk 0:00:29]}  Nb4 {[%clk 0:00:36]} 25. Bxb5 {[%clk 0:00:23]}  Nxc2 {[%clk 0:00:35]} 26. Ra2 {[%clk 0:00:24]}  e5 {[%clk 0:00:26]} 27. Bd3 {[%clk 0:00:23]}  Nd4 {[%clk 0:00:25]} 28. Nxd4 {[%clk 0:00:20]}  exd4 {[%clk 0:00:26]} 29. b4 {[%clk 0:00:20]}  Be6 {[%clk 0:00:25]} 30. Re2 {[%clk 0:00:21]}  a5 {[%clk 0:00:22]} 31. bxa5 {[%clk 0:00:19]}  Rxa5 {[%clk 0:00:22]} 32. Rc2 {[%clk 0:00:19]}  Bd5 {[%clk 0:00:21]} 33. f4 {[%clk 0:00:17]}  Ra1+ {[%clk 0:00:20]} 34. Kf2 {[%clk 0:00:04]}  Rh1 {[%clk 0:00:21]} 0-1

[Event "November 21 Early 2023"]
[Site "https://www.chess.com"]
[Date "2023.11.21"]
[Round "1"]
[White "robertoalejandro10"]
[Black "Cherniaiev, Tykhon"]
[Result "1/2-1/2"]
[Board "66"]
[TimeControl "180+1"]
[BlackFideId "14182360"]
[WhiteElo "2460"]
[BlackElo "2438"]
[BlackTeam "UKR"]
[WhiteClock "0:00:30"]
[BlackClock "0:00:20"]

1. Nf3 {[%clk 0:03:00]}  Nf6 {[%clk 0:02:55]} 2. b3 {[%clk 0:02:57]}  g6 {[%clk 0:02:55]} 3. Bb2 {[%clk 0:02:57]}  Bg7 {[%clk 0:02:54]} 4. c4 {[%clk 0:02:55]}  O-O {[%clk 0:02:54]} 5. g3 {[%clk 0:02:54]}  c5 {[%clk 0:02:52]} 6. Bg2 {[%clk 0:02:54]}  Nc6 {[%clk 0:02:52]} 7. O-O {[%clk 0:02:54]}  d5 {[%clk 0:02:52]} 8. cxd5 {[%clk 0:02:53]}  Nxd5 {[%clk 0:02:53]} 9. Bxg7 {[%clk 0:02:52]}  Kxg7 {[%clk 0:02:54]} 10. Nc3 {[%clk 0:02:52]}  b6 {[%clk 0:02:36]} 11. Nxd5 {[%clk 0:02:40]}  Qxd5 {[%clk 0:02:37]} 12. d4 {[%clk 0:02:40]}  Bb7 {[%clk 0:02:20]} 13. Ne5 {[%clk 0:02:28]}  Qd6 {[%clk 0:02:09]} 14. Nxc6 {[%clk 0:02:27]}  Bxc6 {[%clk 0:02:10]} 15. dxc5 {[%clk 0:02:27]}  Qxd1 {[%clk 0:02:08]} 16. Rfxd1 {[%clk 0:02:27]}  Bxg2 {[%clk 0:02:09]} 17. Kxg2 {[%clk 0:02:28]}  bxc5 {[%clk 0:02:09]} 18. Rd7 {[%clk 0:02:16]}  a5 {[%clk 0:01:54]} 19. Rxe7 {[%clk 0:02:14]}  a4 {[%clk 0:01:55]} 20. Rc1 {[%clk 0:02:13]}  axb3 {[%clk 0:01:54]} 21. axb3 {[%clk 0:02:14]}  Rab8 {[%clk 0:01:46]} 22. Rc3 {[%clk 0:02:07]}  Rb5 {[%clk 0:01:43]} 23. Rc7 {[%clk 0:02:06]}  Rfb8 {[%clk 0:01:42]} 24. R3xc5 {[%clk 0:02:00]}  Rxc5 {[%clk 0:01:42]} 25. Rxc5 {[%clk 0:02:01]}  Rxb3 {[%clk 0:01:43]} 26. e3 {[%clk 0:02:01]}  Rb2 {[%clk 0:01:42]} 27. h4 {[%clk 0:02:01]}  h5 {[%clk 0:01:43]} 28. Kf3 {[%clk 0:02:01]}  Rb3 {[%clk 0:01:41]} 29. Rd5 {[%clk 0:02:01]}  Ra3 {[%clk 0:01:41]} 30. Rd2 {[%clk 0:01:59]}  Kf6 {[%clk 0:01:40]} 31. Ke2 {[%clk 0:01:59]}  Ke6 {[%clk 0:01:40]} 32. Rd3 {[%clk 0:01:58]}  Ra2+ {[%clk 0:01:40]} 33. Kf3 {[%clk 0:01:58]}  Kf6 {[%clk 0:01:40]} 34. Rb3 {[%clk 0:01:58]}  Rc2 {[%clk 0:01:38]} 35. Rb4 {[%clk 0:01:53]}  Rc3 {[%clk 0:01:37]} 36. g4 {[%clk 0:01:53]}  hxg4+ {[%clk 0:01:37]} 37. Rxg4 {[%clk 0:01:53]}  Ra3 {[%clk 0:01:37]} 38. Rf4+ {[%clk 0:01:51]}  Kg7 {[%clk 0:01:37]} 39. Kg4 {[%clk 0:01:51]}  Ra1 {[%clk 0:01:37]} 40. Kf3 {[%clk 0:01:49]}  Ra2 {[%clk 0:01:36]} 41. Kg3 {[%clk 0:01:45]}  Ra1 {[%clk 0:01:36]} 42. e4 {[%clk 0:01:43]}  Rg1+ {[%clk 0:01:35]} 43. Kf3 {[%clk 0:01:43]}  Ra1 {[%clk 0:01:35]} 44. Rg4 {[%clk 0:01:42]}  Ra3+ {[%clk 0:01:34]} 45. Kg2 {[%clk 0:01:43]}  Kf6 {[%clk 0:01:33]} 46. f3 {[%clk 0:01:41]}  Ra2+ {[%clk 0:01:31]} 47. Kg3 {[%clk 0:01:42]}  Ra1 {[%clk 0:01:31]} 48. Kf4 {[%clk 0:01:41]}  Ra5 {[%clk 0:01:30]} 49. Rg5 {[%clk 0:01:39]}  Ra8 {[%clk 0:01:30]} 50. h5 {[%clk 0:01:39]}  gxh5 {[%clk 0:01:29]} 51. Rxh5 {[%clk 0:01:39]}  Ra4 {[%clk 0:01:25]} 52. Rh6+ {[%clk 0:01:39]}  Ke7 {[%clk 0:01:25]} 53. Rb6 {[%clk 0:01:40]}  Ra5 {[%clk 0:01:25]} 54. e5 {[%clk 0:01:37]}  Kf8 {[%clk 0:00:51]} 55. Kf5 {[%clk 0:01:36]}  Kg7 {[%clk 0:00:51]} 56. f4 {[%clk 0:01:36]}  Ra4 {[%clk 0:00:39]} 57. Kg5 {[%clk 0:01:31]}  Ra1 {[%clk 0:00:36]} 58. Rb7 {[%clk 0:01:31]}  Ra5 {[%clk 0:00:36]} 59. Re7 {[%clk 0:01:29]}  Kf8 {[%clk 0:00:35]} 60. Kf6 {[%clk 0:01:24]}  Ra6+ {[%clk 0:00:35]} 61. e6 {[%clk 0:01:24]}  fxe6 {[%clk 0:00:35]} 62. Rxe6 {[%clk 0:01:25]}  Ra7 {[%clk 0:00:32]} 63. f5 {[%clk 0:01:23]}  Rf7+ {[%clk 0:00:32]} 64. Kg5 {[%clk 0:01:22]}  Rg7+ {[%clk 0:00:30]} 65. Rg6 {[%clk 0:01:14]}  Ra7 {[%clk 0:00:27]} 66. Rb6 {[%clk 0:01:13]}  Kg7 {[%clk 0:00:26]} 67. Rg6+ {[%clk 0:01:07]}  Kf7 {[%clk 0:00:25]} 68. Rh6 {[%clk 0:01:05]}  Kg7 {[%clk 0:00:24]} 69. f6+ {[%clk 0:00:53]}  Kg8 {[%clk 0:00:25]} 70. Kg6 {[%clk 0:00:53]}  Rg7+ {[%clk 0:00:25]} 71. Kf5 {[%clk 0:00:54]}  Ra7 {[%clk 0:00:20]} 72. Rh4 {[%clk 0:00:50]}  Ra1 {[%clk 0:00:16]} 73. Rg4+ {[%clk 0:00:48]}  Kf7 {[%clk 0:00:16]} 74. Rg7+ {[%clk 0:00:48]}  Kf8 {[%clk 0:00:17]} 75. Rg4 {[%clk 0:00:43]}  Kf7 {[%clk 0:00:17]} 76. Rg7+ {[%clk 0:00:32]}  Kf8 {[%clk 0:00:18]} 77. Rb7 {[%clk 0:00:28]}  Rf1+ {[%clk 0:00:17]} 78. Ke5 {[%clk 0:00:29]}  Re1+ {[%clk 0:00:18]} 79. Kf5 {[%clk 0:00:29]}  Rf1+ {[%clk 0:00:18]} 80. Kg6 {[%clk 0:00:30]}  Rg1+ {[%clk 0:00:19]} 81. Kf5 {[%clk 0:00:30]}  Rf1+ {[%clk 0:00:20]} 1/2-1/2

[Event "November 21 Early 2023"]
[Site "https://www.chess.com"]
[Date "2023.11.21"]
[Round "1"]
[White "Idani, Pouya"]
[Black "Kopczynski, Michal"]
[Result "1-0"]
[Board "67"]
[TimeControl "180+1"]
[WhiteFideId "12510130"]
[BlackFideId "1124200"]
[WhiteElo "2574"]
[BlackElo "2174"]
[WhiteTeam "IRI"]
[BlackTeam "POL"]
[WhiteClock "0:00:32"]
[BlackClock "0:00:01"]

1. e4 {[%clk 0:03:00]}  b6 {[%clk 0:02:59]} 2. d4 {[%clk 0:02:59]}  Bb7 {[%clk 0:03:00]} 3. Bd3 {[%clk 0:02:57]}  e6 {[%clk 0:03:01]} 4. Qe2 {[%clk 0:02:56]}  Nf6 {[%clk 0:03:01]} 5. Nf3 {[%clk 0:02:55]}  d5 {[%clk 0:03:02]} 6. e5 {[%clk 0:02:55]}  Nfd7 {[%clk 0:03:03]} 7. O-O {[%clk 0:02:52]}  c5 {[%clk 0:03:03]} 8. c3 {[%clk 0:02:53]}  Nc6 {[%clk 0:03:04]} 9. a3 {[%clk 0:02:52]}  Qc7 {[%clk 0:03:04]} 10. b4 {[%clk 0:02:51]}  c4 {[%clk 0:03:04]} 11. Bc2 {[%clk 0:02:51]}  O-O-O {[%clk 0:03:05]} 12. Ng5 {[%clk 0:02:46]}  Ndb8 {[%clk 0:03:03]} 13. Nxh7 {[%clk 0:02:43]}  f6 {[%clk 0:02:11]} 14. f4 {[%clk 0:02:08]}  f5 {[%clk 0:01:51]} 15. Ng5 {[%clk 0:02:08]}  Re8 {[%clk 0:01:45]} 16. Nxe6 {[%clk 0:02:01]}  Rxe6 {[%clk 0:01:44]} 17. Bxf5 {[%clk 0:02:02]}  Nd8 {[%clk 0:01:38]} 18. Bxe6+ {[%clk 0:02:01]}  Nxe6 {[%clk 0:01:38]} 19. f5 {[%clk 0:02:02]}  Nd8 {[%clk 0:01:33]} 20. Bf4 {[%clk 0:02:01]}  Nbc6 {[%clk 0:01:23]} 21. Nd2 {[%clk 0:01:59]}  Nf7 {[%clk 0:01:16]} 22. Rae1 {[%clk 0:01:52]}  Nh6 {[%clk 0:01:12]} 23. g4 {[%clk 0:01:45]}  a5 {[%clk 0:01:05]} 24. b5 {[%clk 0:01:32]}  Na7 {[%clk 0:00:55]} 25. a4 {[%clk 0:01:32]}  Kb8 {[%clk 0:00:54]} 26. h3 {[%clk 0:01:24]}  Nc8 {[%clk 0:00:54]} 27. Nf3 {[%clk 0:01:23]}  Ka7 {[%clk 0:00:54]} 28. Ng5 {[%clk 0:01:23]}  Qe7 {[%clk 0:00:46]} 29. Ne6 {[%clk 0:01:14]}  Qa3 {[%clk 0:00:45]} 30. f6 {[%clk 0:01:05]}  gxf6 {[%clk 0:00:34]} 31. exf6 {[%clk 0:01:00]}  Bd6 {[%clk 0:00:26]} 32. Bxh6 {[%clk 0:00:46]}  Rxh6 {[%clk 0:00:24]} 33. Qe3 {[%clk 0:00:47]}  Rh8 {[%clk 0:00:12]} 34. g5 {[%clk 0:00:46]}  Qa2 {[%clk 0:00:07]} 35. Rf2 {[%clk 0:00:45]}  Qxa4 {[%clk 0:00:07]} 36. g6 {[%clk 0:00:43]}  Qxb5 {[%clk 0:00:04]} 37. g7 {[%clk 0:00:43]}  Rg8 {[%clk 0:00:03]} 38. f7 {[%clk 0:00:43]}  Rxg7+ {[%clk 0:00:03]} 39. Nxg7 {[%clk 0:00:44]}  Bf8 {[%clk 0:00:03]} 40. Qe8 {[%clk 0:00:42]}  Qb3 {[%clk 0:00:03]} 41. Qxf8 {[%clk 0:00:36]}  Qxc3 {[%clk 0:00:03]} 42. Qe8 {[%clk 0:00:36]}  Qg3+ {[%clk 0:00:03]} 43. Rg2 {[%clk 0:00:37]}  Qxh3 {[%clk 0:00:02]} 44. f8=Q {[%clk 0:00:36]}  Nd6 {[%clk 0:00:01]} 45. Qxd6 {[%clk 0:00:32]} 1-0

[Event "November 21 Early 2023"]
[Site "https://www.chess.com"]
[Date "2023.11.21"]
[Round "1"]
[White "Babikov, Ivan"]
[Black "Sonis, Francesco"]
[Result "1-0"]
[Board "68"]
[TimeControl "180+1"]
[WhiteFideId "4161106"]
[BlackFideId "895733"]
[WhiteElo "1986"]
[BlackElo "2435"]
[WhiteTeam "RUS"]
[BlackTeam "ITA"]
[WhiteClock "0:00:35"]
[BlackClock "0:00:14"]

1. e4 {[%clk 0:02:57]}  e5 {[%clk 0:02:59]} 2. Nf3 {[%clk 0:02:57]}  Nc6 {[%clk 0:02:57]} 3. Bc4 {[%clk 0:02:57]}  Bc5 {[%clk 0:02:56]} 4. b4 {[%clk 0:02:58]}  Bxb4 {[%clk 0:02:56]} 5. c3 {[%clk 0:02:57]}  Be7 {[%clk 0:02:54]} 6. d4 {[%clk 0:02:56]}  Na5 {[%clk 0:02:53]} 7. Be2 {[%clk 0:02:54]}  d6 {[%clk 0:02:52]} 8. O-O {[%clk 0:02:53]}  Nc6 {[%clk 0:02:52]} 9. Nbd2 {[%clk 0:02:48]}  Nf6 {[%clk 0:02:48]} 10. h3 {[%clk 0:02:46]}  O-O {[%clk 0:02:44]} 11. Rb1 {[%clk 0:02:45]}  b6 {[%clk 0:02:42]} 12. Qc2 {[%clk 0:02:36]}  Bb7 {[%clk 0:02:41]} 13. Re1 {[%clk 0:02:36]}  Re8 {[%clk 0:02:41]} 14. d5 {[%clk 0:02:20]}  Na5 {[%clk 0:02:36]} 15. c4 {[%clk 0:02:18]}  Bc8 {[%clk 0:02:36]} 16. Nf1 {[%clk 0:02:15]}  Rf8 {[%clk 0:02:35]} 17. Ng3 {[%clk 0:02:12]}  g6 {[%clk 0:02:35]} 18. Bh6 {[%clk 0:02:09]}  Re8 {[%clk 0:02:34]} 19. Nh2 {[%clk 0:02:00]}  Nb7 {[%clk 0:02:32]} 20. f4 {[%clk 0:01:58]}  exf4 {[%clk 0:02:29]} 21. Bxf4 {[%clk 0:01:56]}  Nc5 {[%clk 0:02:29]} 22. Rf1 {[%clk 0:01:48]}  Nfd7 {[%clk 0:02:25]} 23. Ng4 {[%clk 0:01:42]}  Bg5 {[%clk 0:02:00]} 24. Bxg5 {[%clk 0:01:09]}  Qxg5 {[%clk 0:01:59]} 25. Rf2 {[%clk 0:01:05]}  h5 {[%clk 0:01:50]} 26. h4 {[%clk 0:01:01]}  Qxg4 {[%clk 0:01:12]} 27. Bxg4 {[%clk 0:00:58]}  hxg4 {[%clk 0:01:13]} 28. Rbf1 {[%clk 0:00:44]}  Ne5 {[%clk 0:01:13]} 29. h5 {[%clk 0:00:44]}  Kg7 {[%clk 0:01:12]} 30. Qd2 {[%clk 0:00:41]}  Ba6 {[%clk 0:00:53]} 31. Qg5 {[%clk 0:00:36]}  Rh8 {[%clk 0:00:16]} 32. Rxf7+ {[%clk 0:00:34]}  Nxf7 {[%clk 0:00:16]} 33. Qxg6+ {[%clk 0:00:34]}  Kf8 {[%clk 0:00:14]} 34. Qxf7# {[%clk 0:00:35]} 1-0

[Event "November 21 Early 2023"]
[Site "https://www.chess.com"]
[Date "2023.11.21"]
[Round "1"]
[White "Narayanan, Srinath"]
[Black "Berezin, Viktor"]
[Result "1-0"]
[Board "69"]
[TimeControl "180+1"]
[WhiteFideId "5018420"]
[BlackFideId "14107872"]
[WhiteElo "2442"]
[BlackElo "2310"]
[WhiteTeam "IND"]
[BlackTeam "UKR"]
[WhiteClock "0:00:38"]
[BlackClock "0:00:00"]

1. e4 {[%clk 0:03:00]}  g6 {[%clk 0:02:59]} 2. d4 {[%clk 0:03:00]}  Bg7 {[%clk 0:02:58]} 3. Nc3 {[%clk 0:02:59]}  d6 {[%clk 0:02:55]} 4. Be3 {[%clk 0:03:00]}  c6 {[%clk 0:02:54]} 5. h4 {[%clk 0:02:59]}  h5 {[%clk 0:02:53]} 6. Qd2 {[%clk 0:02:58]}  Nd7 {[%clk 0:02:50]} 7. Nh3 {[%clk 0:02:58]}  b5 {[%clk 0:02:49]} 8. Ng5 {[%clk 0:02:57]}  Nb6 {[%clk 0:02:47]} 9. b3 {[%clk 0:02:53]}  Nf6 {[%clk 0:02:43]} 10. f3 {[%clk 0:02:51]}  Qc7 {[%clk 0:02:35]} 11. Ne2 {[%clk 0:02:47]}  O-O {[%clk 0:02:24]} 12. g3 {[%clk 0:02:32]}  e5 {[%clk 0:02:18]} 13. Rd1 {[%clk 0:02:30]}  d5 {[%clk 0:02:13]} 14. dxe5 {[%clk 0:02:27]}  Qxe5 {[%clk 0:02:05]} 15. Bd4 {[%clk 0:02:27]}  Qe7 {[%clk 0:02:04]} 16. e5 {[%clk 0:02:26]}  Ne8 {[%clk 0:01:49]} 17. f4 {[%clk 0:02:23]}  c5 {[%clk 0:01:43]} 18. Ba1 {[%clk 0:02:09]}  f6 {[%clk 0:01:36]} 19. Nf3 {[%clk 0:02:03]}  d4 {[%clk 0:01:26]} 20. Bg2 {[%clk 0:01:55]}  Bb7 {[%clk 0:01:26]} 21. O-O {[%clk 0:01:44]}  Nd5 {[%clk 0:01:14]} 22. Qd3 {[%clk 0:01:19]}  Ne3 {[%clk 0:00:43]} 23. Qxg6 {[%clk 0:01:19]}  Nxg2 {[%clk 0:00:33]} 24. Kxg2 {[%clk 0:01:20]}  fxe5 {[%clk 0:00:28]} 25. fxe5 {[%clk 0:01:19]}  Qxe5 {[%clk 0:00:17]} 26. Nf4 {[%clk 0:01:19]}  Rxf4 {[%clk 0:00:11]} 27. gxf4 {[%clk 0:01:13]}  Qxf4 {[%clk 0:00:11]} 28. Qg3 {[%clk 0:00:56]}  Qf5 {[%clk 0:00:11]} 29. Kh2 {[%clk 0:00:53]}  Nf6 {[%clk 0:00:10]} 30. Nxd4 {[%clk 0:00:44]}  Ng4+ {[%clk 0:00:09]} 31. Kg1 {[%clk 0:00:44]}  Qg6 {[%clk 0:00:00]} 32. Nf5 {[%clk 0:00:38]} 1-0